Cogmind - Beta 16 @@@ ROGUE MODE // 2026.01.07 @ 16:53:07 Player: Teucer Result: Destroyed by 6A-JIF(R) with Subdweller Laser Performance ------------- Evolutions (0) 0 Regions Visited (3) 600 Robots Destroyed (34) 170 Value Destroyed (751) 751 Prototype IDs (0) 0 Alien Tech Used (0) 0 Bonus (0) 0 TOTAL SCORE: 1521 Bonus ------- None Cogmind --------- Core Integrity 0/250 Matter 290/300 Energy 125/125 System Corruption 0% Temperature Cool (6) Movement Rolling (110) Ox2 Location -10/Subcaves Parts ------- > --- POWER (1) -------- Light Ion Engine > --- PROPULSION (2) --- Wheel Wheel > --- UTILITY (2) ------ High-capacity Storage Unit Improved Terrain Scanner > --- WEAPON (2) ------- Assault Rifle Battle Cannon > --- INVENTORY (20) --- Light Treads Improved Heat Sink Large Storage Unit Sensor Array Scrap Shield Hacking Suite Beam Rifle Beam Rifle Light Assault Rifle Subdweller Machine Gun Grenade Launcher Grenade Launcher Mining Laser Peak State ------------ > --- POWER ------------ Light Nuclear Core > --- PROPULSION ------- Light Treads Light Treads > --- UTILITY ---------- High-capacity Storage Unit Seismic Detector > --- WEAPON ----------- Assault Rifle Assault Rifle > --- INVENTORY -------- Light Ion Engine Light Ion Engine Light Treads Light Treads Wheel Wheel Heat Sink Improved Heat Sink Large Storage Unit Compact Matter Pod Sensor Array Improved Terrain Scanner Light Armor Plating Hacking Suite Beam Rifle Beam Rifle Light Assault Rifle Grenade Launcher Grenade Launcher Mining Laser [Rating: 12] Favorites ----------- Power Light Ion Engine Engine Light Ion Engine Power Core Light Nuclear Core Propulsion Light Treads Treads Light Treads Wheel Wheel Utility Seismic Detector Device Seismic Detector Storage High-capacity Storage Unit Protection Light Armor Plating Weapon Assault Rifle Ballistic Gun Assault Rifle Ballistic Cannon Light Cannon Launcher Grenade Launcher Build | -11 -10 -10 -10 ------- Run | Yrd Mat Min Sub Slots Evolved . | . . . . Power . | . . . . Propulsion . | . . . . Utility . | . . . . Weapon . | . . . . Parts Attached 28 | 8 5 5 10 Power 4 | 1 . 2 1 Engine 3 | 1 . 1 1 Core 1 | . . 1 . Reactor . | . . . . Propulsion 6 | 2 . 2 2 Treads 4 | 2 . 2 . Leg . | . . . . Wheel 2 | . . . 2 Hover . | . . . . Flight . | . . . . Utility 9 | 2 2 . 5 Device 3 | 1 . . 2 Storage 4 | 1 2 . 1 Processor . | . . . . Hackware . | . . . . Protection 2 | . . . 2 Artifact . | . . . . Weapon 9 | 3 3 1 2 Energy Gun . | . . . . Energy Cannon . | . . . . Ballistic Gun 5 | 3 1 1 . Ballistic Cannon 2 | . . . 2 Launcher 2 | . 2 . . Special Weapon . | . . . . Impact Weapon . | . . . . Slashing Weapon . | . . . . Piercing Weapon . | . . . . Special Melee Weapon . | . . . . Unidentified Prototypes . | . . . . Parts Lost 10 | . . 2 8 Power 1 | . . . 1 Propulsion 1 | . . . 1 Utility 4 | . . . 4 Weapon 4 | . . 2 2 Highest Loss Streak 4 | . . 1 4 To Critical Strikes . | . . . . Average Backups 14 | 4 12 17 18 Power 1 | . 1 1 . Propulsion 2 | 1 2 2 1 Utility 5 | . 3 7 8 Weapon 5 | 1 5 5 7 Tool/Special . | . . . . Unused Backups 8 | . . 2 6 Power . | . . . . Propulsion . | . . . . Utility 4 | . . 2 2 Weapon 4 | . . . 4 Tool/Special . | . . . . Average Slot Usage (%) 99 | . 99 100 99 Engine 10 | . 14 4 14 Core 3 | . . 9 . Treads 27 | . 27 28 24 Device 12 | . 14 14 7 Storage 14 | . 14 14 14 Protection 1 | . . . 6 Ballistic Gun 27 | . 27 28 25 Peak Build Rating 12 | 7 8 12 12 Average Rating 9 | 6 7 10 10 On Entrance 6 | . 7 8 11 Avg Prop Armor Cover (%) . | . . . . Naked Turns . | . . . . Heaviest Build 55 | 13 49 52 55 Greatest Support 40 | 40 40 40 40 Greatest Overweight (x) 2 | . 1 1 2 Average Overweight (x) . | . . 1 1 Largest Inventory Capacity 20 | 8 20 20 20 Average Capacity 17 | 7 17 20 20 Most Carried 20 | 6 15 20 20 Average Carried 14 | 4 12 17 19 Final Capacity 20 | 8 20 20 20 Final Carried 20 | 6 15 20 14 Class Distribution -------------------- 83% | Mutant 16% | Scavenger-Mutant Dominant Class ---------------- Mutant | -10/Materials Mutant | -10/Mines Mutant | -10/Subcaves Resources | -11 -10 -10 -10 ----------- Run | Yrd Mat Min Sub Matter Collected 1081 | 400 320 158 203 Remotely . | . . . . Salvage Created 1024 | 183 359 202 280 Parts 72 | 17 29 16 10 Haulers Intercepted 2 | . 2 . . Recyclers Shooed 1 | 1 . . . Parts Field Recycled . | . . . . Retrieved Matter . | . . . . Parts Self-Destructed 4 | . . . 4 Prevented . | . . . . Parts Restored . | . . . . Kills | -11 -10 -10 -10 ------- Run | Yrd Mat Min Sub Combat Hostiles Destroyed 22 | . 11 4 7 Guns 19 | . 11 4 4 Cannons 3 | . . . 3 Classes Destroyed 10 | 2 6 1 1 Builder 1 | . 1 . . Tunneler 6 | 6 . . . Hauler 2 | . 2 . . Recycler 1 | 1 . . . Operator 1 | . 1 . . Watcher 1 | . 1 . . Swarmer 9 | . 9 . . Grunt 4 | . 2 2 . Sentry 2 | . . 2 . Subdweller 7 | . . . 7 Best Kill Streak 5 | 3 5 2 4 Combat Bots Only 4 | . 3 2 4 Max Kills in Single Turn 2 | 1 2 1 1 Gunslinging 1 | . 1 . . Exploded . | . . . . Melee . | . . . . Uniques/NPCs Destroyed . | . . . . Combat | -11 -10 -10 -10 -------- Run | Yrd Mat Min Sub Hostile Shots Fired 158 | . 67 36 55 Missed 44 | . 24 8 12 Hits 114 | . 43 28 43 Projectile 114 | . 43 28 43 Critical Strikes 2 | . . 1 1 Damage Taken 1719 | . 418 390 911 Core 260 | . 41 59 160 Absorbed by Shields . | . . . . Regen/Repaired (Parts) 72 | . 72 . . Core Remaining (%) 100 | 100 . . . Volleys Fired 100 | 20 42 14 24 Largest 2 | 2 2 2 2 Hottest 53 | 40 40 40 53 Shots Fired 198 | 40 82 28 48 Gun 182 | 40 80 28 34 Cannon 14 | . . . 14 Launcher 2 | . 2 . . Special . | . . . . Kinetic 196 | 40 80 28 48 Thermal . | . . . . Explosive 2 | . 2 . . Electromagnetic . | . . . . Robot Hit Streak 11 | 6 10 9 11 Robot Miss Streak 7 | 3 7 2 2 Penetration Max . | . . . . Secondary Targets 6 | . 3 2 1 Max Gunslinging Chain 1 | . 1 1 1 Shots Hit Robots 131 | 23 46 23 39 Core Hits 52 | 7 21 9 15 Critical Kills 2 | 1 1 . . Critical Parts Destroyed 1 | . 1 . . Critical Strikes 4 | 1 2 . 1 Destroy 3 | 1 2 . . Blast 1 | . . . 1 Melee Attacks . | . . . . Impact . | . . . . Slashing . | . . . . Piercing . | . . . . Sneak Attacks . | . . . . Combat Hostiles . | . . . . Follow-up Attacks . | . . . . Damage Inflicted 1795 | 302 643 278 572 Guns 1528 | 302 596 278 352 Cannons 220 | . . . 220 Explosions 47 | . 47 . . Melee . | . . . . Ramming . | . . . . Kinetic 1748 | 302 596 278 572 Thermal . | . . . . Explosive 47 | . 47 . . Electromagnetic . | . . . . Impact . | . . . . Slashing . | . . . . Piercing . | . . . . Highest Corruption . | . . . . Average Corruption . | . . . . Corruption Purged . | . . . . Corruption Blocked . | . . . . Overload Shots . | . . . . Overflow Damage . | . . . . Projectiles . | . . . . Explosions . | . . . . Melee . | . . . . Knockbacks 3 | . . . 3 Impact . | . . . . Kinetic 3 | . . . 3 Secondary . | . . . . Self-Inflicted Damage . | . . . . Shots . | . . . . Rammed 1 | . 1 . . Targets Rammed 1 | . 1 . . Kicked . | . . . . Crushed . | . . . . Highest Temperature 222 | . 8 22 222 Average Temperature 35 | . 3 5 111 Received Heat Transfer 655 | . 57 192 406 Siege Activations . | . . . . Martial Activations . | . . . . Shielding Activations . | . . . . Robots Disrupted . | . . . . Combat Hostiles . | . . . . Robots Corrupted . | . . . . Combat Hostiles . | . . . . Parts Fried . | . . . . Impact Corruptions . | . . . . Robots Melted . | . . . . Combat Hostiles . | . . . . Parts Melted . | . . . . Heat Transferred . | . . . . Parts Sabotaged . | . . . . Parts Stolen . | . . . . Parts Stripped . | . . . . Power Chain Reactions . | . . . . Alert | -11 -10 -10 -10 ------- Run | Yrd Mat Min Sub Maximum Alert Level 1 | . 1 . . Low Security (%) 96 | 100 93 100 . Level 1 3 | . 6 . . Level 2 . | . . . . Level 3 . | . . . . Level 4 . | . . . . Level 5 . | . . . . High Security . | . . . . Max Security . | . . . . Peak Influence 227 | 5 227 69 . Initial 49 | . 3 49 . Average 51 | 1 91 6 . Influence Increases 610 | 35 485 90 . Destroy 0b10 Robot/C 300 | . 220 80 . Destroy 0b10 Robot/NC 60 | 35 25 . . Destroy Leader 66 | . 56 10 . Successful Hack 31 | . 31 . . Select Force Hacks 60 | . 60 . . Disable Machine 60 | . 60 . . Destroy Structure 3 | . 3 . . Partial Spotted 15 | . 15 . . Lose Combat Pursuer 15 | . 15 . . Influence Decreases 610 | 30 362 218 . Entered New Map 81 | . 2 79 . Time Decay 509 | 30 360 119 . Lost Part 20 | . . 20 . Squads Dispatched 3 | . 3 . . Investigation 2 | . 2 . . Extermination . | . . . . Reinforcement 1 | . 1 . . Assault . | . . . . Garrison . | . . . . Intercept . | . . . . Searches Triggered . | . . . . Construction Impeded . | . . . . Haulers Reinforced . | . . . . Active Scanning Responses . | . . . . Cargo Convoy Interrupts . | . . . . Stealth | -11 -10 -10 -10 --------- Run | Yrd Mat Min Sub Distress Signals . | . . . . Communications Jammed . | . . . . Distress Signals . | . . . . Times Spotted 40 | . 24 4 12 Peak Tracking Total 7 | . 5 2 7 Tactical Retreats 2 | . 1 . 1 Traps | -11 -10 -10 -10 ------- Run | Yrd Mat Min Sub Traps Triggered . | . . . . Indirectly . | . . . . Trap Hack Attempts . | . . . . Triggered . | . . . . Disarmed . | . . . . Reprogrammed . | . . . . Reused . | . . . . Traps Extracted . | . . . . Installed . | . . . . Triggered . | . . . . Machines | -11 -10 -10 -10 ---------- Run | Yrd Mat Min Sub Machines Disabled 4 | . 4 . . Max in Single Turn 1 | . 1 . . Machines Repaired . | . . . . Machines Dismantled . | . . . . Machines Sabotaged . | . . . . Overloaded Fab Kills . | . . . . Hacking | -11 -10 -10 -10 --------- Run | Yrd Mat Min Sub Machines Accessed 11 | . 9 . 2 Terminals 6 | . 6 . . Fabricators . | . . . . Repair Stations 1 | . 1 . . Recycling Units 2 | . 2 . . Scanalyzers . | . . . . Garrison Access . | . . . . Total Hacks 34 | . 31 . 3 Successful 20 | . 17 . 3 Failed 14 | . 14 . . Catastrophic 2 | . 2 . . Database Lockouts . | . . . . Manual 14 | . 14 . . Terminals 23 | . 23 . . Fabricators . | . . . . Repair Stations 2 | . 2 . . Recycling Units 6 | . 6 . . Scanalyzers . | . . . . Garrison Access . | . . . . Terminal Hacks 9 | . 6 . 3 Record 1 | . . . 1 Open Door 1 | . . . 1 Terminal Index 1 | . 1 . . Locate Traps 2 | . 2 . . Hauler Manifests 1 | . 1 . . Zone Layout 2 | . 2 . . Release Object 1 | . . . 1 Fabricator Hacks . | . . . . Repair Station Hacks 2 | . 2 . . Scan Component 1 | . 1 . . Repair 1 | . 1 . . Recycling Unit Hacks 1 | . 1 . . Report Inventory 1 | . 1 . . Scanalyzer . | . . . . Garrison Access Hacks . | . . . . Unauthorized Hacks 8 | . 8 . . Terminals 6 | . 6 . . Botnet 1 | . 1 . . Skim 5 | . 5 . . Fabricators . | . . . . Repair Stations . | . . . . Recycling Units 2 | . 2 . . Tunnel 2 | . 2 . . Scanalyzers . | . . . . Garrison Access . | . . . . Data Cores Recovered . | . . . . Used . | . . . . Hacking Detections 9 | . 9 . . Full Trace Events . | . . . . Feedback Events . | . . . . Feedback Blocked . | . . . . Robot Schematics Acquired . | . . . . Robots Built . | . . . . Authchips . | . . . . Time . | . . . . Total Robot Build Rating . | . . . . Part Schematics Acquired . | . . . . Parts Built . | . . . . Authchips . | . . . . Time . | . . . . Total Part Build Rating . | . . . . Part Studies Acquired . | . . . . Parts Repaired 1 | . 1 . . Time 26 | . 26 . . Parts Recycled . | . . . . Recycled Matter . | . . . . Retrieved Matter . | . . . . Retrieved Components . | . . . . Parts Scanalyzed . | . . . . Part Schematics Acquired . | . . . . Parts Damaged . | . . . . Bothacking | -11 -10 -10 -10 ------------ Run | Yrd Mat Min Sub Used RIF Installer . | . . . . Robots Hacked . | . . . . Non-combat . | . . . . Combat . | . . . . Robot Hacks Applied . | . . . . Relay Couplers Released . | . . . . Fabnet Peak Effective % . | . . . . Robots Rewired . | . . . . Allies Hacked . | . . . . Hacks Repelled . | . . . . Allies | -11 -10 -10 -10 -------- Run | Yrd Mat Min Sub Total Allies . | . . . . Largest Group . | . . . . Highest-Rated Group . | . . . . Highest-Rated Ally . | . . . . Total Orders . | . . . . Ally Attacks . | . . . . Total Damage . | . . . . Kills . | . . . . Allies Corrupted . | . . . . Allies Melted . | . . . . Intel | -11 -10 -10 -10 ------- Run | Yrd Mat Min Sub Active Infowar (turns) 3137 | 122 1587 1140 288 Sensors 19 | . . . 19 Terrain 6 | . . . 6 Seismic 3112 | 122 1587 1140 263 Robot Analysis Total . | . . . . Derelict Logs Recovered 1 | . . 1 . Drone Launches . | . . . . Drone Recoveries . | . . . . Exploration | -11 -10 -10 -10 ------------- Run | Yrd Mat Min Sub Turns Passed 3518 | 252 1587 1140 539 Spaces Moved 1451 | 112 698 447 194 Core 7 | 7 . . . Treads 1422 | 105 698 447 172 Legs . | . . . . Wheels 22 | . . . 22 Hover . | . . . . Flight . | . . . . Fastest Speed 50 | 50 160 240 110 Average Speed 209 | 153 194 240 225 Slowest Speed 240 | 160 240 240 240 Overloaded Moves . | . . . . Propulsion Burnouts . | . . . . Robots Hopped . | . . . . Potential Cave-ins . | . . . . Cave-ins Triggered . | . . . . Exploration Rate (%) 45 | 7 93 70 12 Regions Visited 3 Branch Regions 2 Pre-discovered Areas 4 | . 3 1 . Known Exits Taken 2 | . 1 1 . Unknown Exits Taken 1 | 1 . . . Scrap Searched 1 | . . . 1 Spaces Dug . | . . . . Terrain Destroyed 2 | . 2 . . Melee . | . . . . Projectile . | . . . . AOE 2 | . 2 . . Terrain Rammed . | . . . . Walls Destroyed . | . . . . Machines Disabled . | . . . . Actions | -11 -10 -10 -10 --------- Run | Yrd Mat Min Sub Total 1729 | 149 845 487 248 Wait 114 | 3 88 9 14 Move 1448 | 111 697 446 194 Hop . | . . . . Pick Up 25 | 7 8 7 3 Fast Attach 8 | 6 1 1 . Attach 11 | 1 . 2 8 Detach . | . . . . Swap 14 | 1 6 4 3 Drop 8 | . 2 4 2 Fire 100 | 20 42 14 24 Melee . | . . . . Ram . | . . . . Kick . | . . . . Crush 1 | . 1 . . Escape Stasis . | . . . . Rewire . | . . . . Trap . | . . . . Miscellaneous . | . . . . Route ------- -11/Scrapyard -10/Materials (discovered 5 exits: *Mat x3 / *Min / *Sub) -10/Mines (discovered 3 exits: *Mat x2 / *Sub) -10/Subcaves (discovered 2 exits: Mat x2) History --------- Turn | Location | Event 2 | -11/Scrapyard | Met Revision 17 10 | -11/Scrapyard | Discovered new exit (range 15) 253 | -11/Scrapyard | Entered Materials 331 | -10/Materials | Build established: Mutant 534 | -10/Materials | Repaired Lgt. Treads 556 | -10/Materials | Discovered new exit (range 15) 639 | -10/Materials | Discovered new exit (range 9) 966 | -10/Materials | Learned location of Recycling (-9) 1002 | -10/Materials | Identified exit to Materials 1028 | -10/Materials | Learned 2 Materials zone layouts 1044 | -10/Materials | Identified exit to Mines 1048 | -10/Materials | Learned Storage stockpile data 1049 | -10/Materials | Learned 2 Materials zone layouts 1050 | -10/Materials | Learned Storage security intel 1051 | -10/Materials | Learned location of 2 exits from Mines 1070 | -10/Materials | Learned location of 2 exits from Subcaves 1840 | -10/Materials | Entered Mines 1842 | -10/Mines | Identified exit to Subcaves 2777 | -10/Mines | Assembled infested the area 2947 | -10/Mines | Build established: Scavenger-Mutant 2980 | -10/Mines | Entered Subcaves 2981 | -10/Subcaves | Approached by a straggling Scientist 2981 | -10/Subcaves | Identified exit to Materials 3016 | -10/Subcaves | Ambushed by Subdwellers from Twisted Machinery 3409 | -10/Subcaves | Ambushed by swarm of Subdwellers 3424 | -10/Subcaves | Core integrity fell below 50% 3438 | -10/Subcaves | Core integrity fell below 20% 3478 | -10/Subcaves | Lost 3 parts (1n1u1w) 3519 | -10/Subcaves | Destroyed by 6A-JIF(R) with Subdweller Laser Last Messages --------------- 03435_ Assault Rifle destroyed. 03437_ 2E-AYR(R) suffers critical hit (Blast). 03437_ 2E-AYR(R) destroyed. 03445_ Lgt. Armor Plating destroyed. 03447_ Lgt. Treads destroyed. 03451_ TN-30K(R) destroyed. 03460_ 7H-A3Y(R) destroyed. 03465_ Acquired 71 matter. 03467_ Acquired Sub. Machine Gun. 03468_ Acquired 40 matter. 03495_ 6A-JIF(R) knocked back. 03498_ Imp. Ion Engine destroyed. 03501_ Lgt. Armor Plating destroyed. 03502_ Lgt. Cannon destroyed. 03504_ Com. Matter Pod destroyed. 03504_ TD-5PM(R) knocked back. 03507_ TD-5PM(R) destroyed. 03510_ 81-FOD(R) destroyed. 03516_ Acquired 32 matter. 03517_ 6A-JIF(R) knocked back. Map ----- +----------------------------------------------------+ | ?????# ###### ####### ##?????????????????? | | ?????## ?????## & ##????? ??????????????????? | | ??????##??????# !%##??????# ??????????????????? | | ??????????????## &&######??# ##?????????????????? | | ???????????????# %*% ! #?? ??????????????????? | | ???????????????# !#! #### ##?????????????????? | | ???????????????## # # ## #?????????????????? | | ????????????????## ### #??????????????????? | | ?????????????????# ##?### # # ##?????????????????? | | ?????????????????###???###### #?????????????????? | | ?????????? ???????????# ##% &##?????????????????? | | ?????????? ????????## %!%!&#??????????????????? | | ??????????# ???###?# %=#!##??????????????????? | | ??????????# ??# ## ####???????????????????? | | ??????????# ### #???###????????????????? | | ??????????# ##??# ###??????????????? | | ???????????# # #"### ## ???????????? | | ???????????## # #""# ????????????? | | ???????????## """ #???????????????? | | ???????????# #???????????????? | | ??????? #???????????????? | | ??????? ## ## #???????????????? | | ???????? #?# ### #???????????????? | | ???????? ??## #? ###???????????????? | | ????????? ????# #??%##?????????????????? | | ?????????# ?????# &@#??????????????????????? | | ??????????## #??# !%! % ???????????????????? | | ???????????##???# % R ? ?????????????? | | ???????????????# ### ???????????? | | ??????????????# # #??## ### ??????????? | | ??????????????# ?????# #???? ???????????? | | ??????????????# ??????####?????? ???????????? | | ?????????????# ????????????????????????????? | | ????????????# %=?????????????????????????????? | | ???????????? ?????????????????????????????? | | ???????